bitfinex/quotes_BTCUSD_20250902
["timestamp","ask_amount","ask_price","bid_price","bid_amount"]
[1756818855322,8.07910001,109450.0,109440.0,1e-08]
[1756818855753,8.34938001,109450.0,109440.0,1e-08]
[1756818855977,9.37427852,109450.0,109440.0,1e-08]
[1756818856208,9.37427852,109450.0,109410.0,0.07354631]
[1756818856209,1.83705007,109420.0,109410.0,0.07354631]
[1756818856431,2.2891923,109420.0,109410.0,0.07354631]
[1756818857043,2.31668334,109420.0,109410.0,0.07354631]
[1756818857296,0.18279864,109410.0,109400.0,0.00313]
[1756818857517,1.63642808,109410.0,109400.0,0.00359949]
[1756818857728,1.63642808,109410.0,109400.0,0.00555949]
[1756818857729,1.50168777,109410.0,109400.0,0.00555949]
[1756818857913,1.59360376,109410.0,109400.0,0.00555949]
[1756818858522,0.56792636,109410.0,109400.0,0.00555949]
[1756818858684,0.001,109410.0,109400.0,0.18837484]
[1756818858885,0.001,109410.0,109400.0,0.68162755]
[1756818859086,0.001,109410.0,109400.0,0.26020484]
[1756818859306,0.001,109410.0,109400.0,0.68162755]
[1756818859514,0.001,109410.0,109400.0,0.79448236]
[1756818860199,0.001,109410.0,109400.0,0.37305965]
[1756818860625,0.001,109410.0,109400.0,0.79448236]
[1756818860822,0.001,109410.0,109400.0,0.95364236]
[1756818861079,0.001,109410.0,109400.0,1.37506507]
[1756818861971,0.5,109420.0,109410.0,0.20373746]
[1756818862172,0.36747823,109440.0,109430.0,0.18276523]
[1756818862442,0.36747823,109440.0,109430.0,0.34701523]
[1756818862443,0.56982708,109440.0,109430.0,0.34701523]
[1756818862649,0.56982708,109440.0,109430.0,0.18785523]
[1756818862857,0.99124979,109440.0,109430.0,0.18785523]
[1756818863063,0.99124979,109440.0,109430.0,0.34701523]
[1756818863270,0.99124979,109440.0,109430.0,0.18785523]
[1756818863476,0.56982708,109440.0,109430.0,0.34701523]
[1756818863688,0.56982708,109440.0,109430.0,0.16425]
[1756818864101,0.56982708,109440.0,109430.0,0.34701523]
[1756818865353,0.54234885,109440.0,109430.0,0.18785523]
[1756818865554,0.54234885,109440.0,109430.0,0.34697523]
[1756818865758,0.56982642,109440.0,109430.0,0.34697523]
[1756818866148,0.56982642,109440.0,109430.0,0.16421]
[1756818866323,0.18276523,109430.0,109420.0,0.07341]
[1756818866532,0.18276523,109430.0,109420.0,0.23253]
[1756818866735,0.18276523,109430.0,109420.0,0.23449]
[1756818866939,0.18276523,109430.0,109420.0,0.41727194]
[1756818867716,0.18276523,109430.0,109420.0,0.23449]
[1756818868478,0.18276523,109430.0,109420.0,0.41827194]
[1756818869136,1.23377611,109440.0,109430.0,0.18276523]
[1756818869353,0.56986251,109440.0,109430.0,0.00509]
[1756818870392,0.38711398,109440.0,109430.0,0.18785523]
[1756818870632,0.56986251,109440.0,109430.0,0.00509]
[1756818871040,1.25540252,109440.0,109430.0,0.15908]
[1756818871448,0.18276523,109430.0,109420.0,0.07341]
[1756818871649,0.88595165,109430.0,109420.0,0.23445]
[1756818871853,1.22794165,109430.0,109420.0,0.23445]
[1756818872266,1.25542234,109430.0,109420.0,0.22936]
[1756818872721,1.25542234,109430.0,109420.0,0.23232]
[1756818872930,1.34733833,109430.0,109420.0,0.07324]
[1756818873146,1.43925432,109430.0,109420.0,0.003]
[1756818873352,1.46671401,109430.0,109420.0,0.003]
[1756818873575,1.54721032,109430.0,109420.0,0.003]
[1756818874188,1.55621032,109430.0,109420.0,0.002]
[1756818874396,1.59721032,109430.0,109420.0,0.002]
[1756818874579,1.5645974,109430.0,109420.0,0.002]
[1756818874841,1.71234353,109430.0,109420.0,0.002]
[1756818875063,0.18278194,109420.0,109410.0,0.00313]
[1756818875267,0.57333374,109420.0,109410.0,0.00313]
[1756818875474,0.57333374,109420.0,109410.0,0.00509]
[1756818875827,0.56694598,109420.0,109410.0,0.00509]
[1756818876449,0.54241835,109420.0,109410.0,0.18788864]
[1756818876777,0.35963641,109420.0,109410.0,0.18788864]
[1756818876951,0.54241835,109420.0,109410.0,0.18788864]
[1756818877730,0.54241835,109420.0,109410.0,0.00509]
[1756818877936,0.54241835,109420.0,109410.0,0.16413]
[1756818879356,0.54455835,109420.0,109410.0,0.00509]
[1756818879568,0.54455835,109420.0,109410.0,0.15904]
[1756818879569,1.23117836,109420.0,109410.0,0.15904]
[1756818879984,0.52279864,109410.0,109400.0,0.00046949]
[1756818880195,1.22598506,109410.0,109400.0,0.15946949]
[1756818880400,1.31790105,109410.0,109400.0,0.00046949]
[1756818880612,1.32311105,109410.0,109400.0,0.00046949]
[1756818881232,1.35060096,109410.0,109400.0,0.00046949]
[1756818881439,0.78042457,109410.0,109400.0,0.00248949]
[1756818881640,1.46183458,109410.0,109400.0,0.00666949]
[1756818881850,1.43944695,109410.0,109400.0,0.00666949]
[1756818882277,1.43944695,109410.0,109400.0,0.00866949]
[1756818882482,1.46397458,109410.0,109400.0,0.00346949]
[1756818882889,1.46183458,109410.0,109400.0,0.00866949]
[1756818883091,1.25347497,109410.0,109400.0,0.00866949]
[1756818883222,1.27878148,109410.0,109400.0,0.00866949]
[1756818883833,1.28076148,109410.0,109400.0,0.00548949]
[1756818886200,1.28076148,109410.0,109400.0,0.00346949]
[1756818886446,1.28399148,109410.0,109400.0,0.16246949]
[1756818886648,1.4004351,109410.0,109400.0,0.00346949]
[1756818886854,1.65773651,109410.0,109400.0,0.00346949]
[1756818887073,1.69044264,109410.0,109400.0,0.00346949]
[1756818887276,1.70746797,109410.0,109400.0,0.00350949]
[1756818887678,1.70746797,109410.0,109400.0,0.00250949]
[1756818888359,1.70744649,109410.0,109400.0,0.00250949]
[1756818888778,1.70744649,109410.0,109400.0,0.00050949]
[1756818889209,0.85968648,109410.0,109400.0,0.00252949]
[1756818889415,0.84266115,109410.0,109400.0,0.00570949]
[1756818889594,0.81194502,109410.0,109400.0,0.00570949]
[1756818889855,1.49549503,109410.0,109400.0,0.00252949]
[1756818890274,1.48910961,109410.0,109400.0,0.00252949]
[1756818890480,0.59523147,109410.0,109400.0,0.16466949]
[1756818892151,1.28077148,109410.0,109400.0,0.16466949]
[1756818892355,1.27878148,109410.0,109400.0,0.16466949]
[1756818892556,1.28077148,109410.0,109400.0,0.16466949]
[1756818892992,0.59722147,109410.0,109400.0,0.16466949]
[1756818893191,0.68913746,109410.0,109400.0,0.16466949]
[1756818894068,0.68913746,109410.0,109400.0,0.16148949]
[1756818894274,0.68714746,109410.0,109400.0,0.16466949]
[1756818895846,0.59523147,109410.0,109400.0,0.16466949]
[1756818896677,0.59722147,109410.0,109400.0,0.16466949]
[1756818898988,0.59523147,109410.0,109400.0,0.16466949]
[1756818899435,0.59722147,109410.0,109400.0,0.16466949]
[1756818900394,1.28399148,109410.0,109400.0,0.00050949]
[1756818900626,1.37590747,109410.0,109400.0,0.15942949]
[1756818900849,0.59523147,109410.0,109400.0,0.16462949]
[1756818901534,0.59721147,109410.0,109400.0,0.16462949]
[1756818901731,0.59523147,109410.0,109400.0,0.16462949]
[1756818901990,0.59721147,109410.0,109400.0,0.00050949]
[1756818902218,0.59721147,109410.0,109400.0,0.16144949]
[1756818902439,0.62171762,109410.0,109400.0,0.16144949]
[1756818902654,1.30526763,109410.0,109400.0,0.16144949]
[1756818903376,1.39718362,109410.0,109400.0,0.16144949]
[1756818903585,1.30526763,109410.0,109400.0,0.16144949]
[1756818904215,0.59523147,109410.0,109400.0,0.16462949]
[1756818904632,0.07243283,109410.0,109400.0,0.16462949]
[1756818904845,0.04494292,109410.0,109400.0,0.34973003]
[1756818905056,0.02530651,109410.0,109400.0,0.34744484]
[1756818905271,0.20810515,109410.0,109400.0,0.34744484]
[1756818905476,0.18279864,109410.0,109400.0,0.34744484]
[1756818905695,1.20832865,109410.0,109400.0,0.00050949]
[1756818905902,1.30347464,109410.0,109400.0,0.00050949]
[1756818906117,1.30347464,109410.0,109400.0,0.78117549]
[1756818906118,0.06761269,109410.0,109400.0,0.78117549]
[1756818906362,0.02547211,109430.0,109420.0,0.20372076]
[1756818906644,0.20723866,109450.0,109430.0,0.18276523]
[1756818906881,0.18274853,109440.0,109430.0,0.18594523]
[1756818907114,0.35965623,109440.0,109430.0,0.34684523]
[1756818907569,0.54240476,109440.0,109430.0,0.34684523]
[1756818908006,0.52274853,109440.0,109430.0,0.34684523]
[1756818908452,0.52472853,109440.0,109420.0,0.09591599]
[1756818908704,0.71049696,109440.0,109430.0,0.15884]
[1756818908926,0.71049638,109440.0,109430.0,0.15884]
[1756818909584,0.71049638,109440.0,109430.0,0.16084]
[1756818909810,0.71049054,109440.0,109430.0,0.16084]
[1756818910029,0.52276523,109430.0,109420.0,0.15884]
[1756818910262,0.54442878,109430.0,109420.0,0.15884]
[1756818910498,0.63634254,109430.0,109420.0,0.15884]
[1756818910706,0.63634255,109430.0,109420.0,0.15884]
[1756818910918,0.35963133,109430.0,109420.0,1.03014195]
[1756818911135,0.34,109430.0,109420.0,1.03014195]
[1756818911348,0.34,109430.0,109420.0,1.03314195]
[1756818911558,0.34,109430.0,109420.0,0.34959194]
[1756818912177,0.36565359,109440.0,109430.0,0.18276523]
[1756818912415,0.36565359,109440.0,109430.0,0.18773523]
[1756818912630,0.19185089,109460.0,109450.0,0.18273184]
[1756818912845,0.55999201,109460.0,109450.0,0.1608]
[1756818913094,0.52298156,109460.0,109450.0,0.16377]
[1756818913303,0.55045679,109460.0,109450.0,0.16377]
[1756818913728,0.57700997,109460.0,109450.0,0.1588]
[1756818913951,0.18273184,109450.0,109440.0,0.18571853]
[1756818914165,0.18273184,109450.0,109440.0,0.34451853]
[1756818914427,0.18273184,109450.0,109440.0,0.34651853]
[1756818914855,0.18476184,109450.0,109440.0,0.1588]
[1756818915077,0.52476184,109450.0,109440.0,0.1588]
[1756818915294,0.52273184,109450.0,109440.0,0.34651853]
[1756818915509,0.34,109450.0,109440.0,0.34651853]
[1756818915734,0.52273184,109450.0,109440.0,0.34651853]
[1756818916086,0.34,109450.0,109440.0,0.34651853]
[1756818916305,0.53703294,109450.0,109440.0,0.34651853]
[1756818917126,0.53906294,109450.0,109440.0,0.003]
[1756818917309,0.53906294,109450.0,109440.0,0.15976]
[1756818917508,0.53906294,109450.0,109440.0,0.16376]
[1756818917741,0.53906294,109450.0,109440.0,0.16673]
[1756818917946,0.53703294,109450.0,109440.0,0.16673]
[1756818918155,0.52476184,109450.0,109440.0,0.16673]
[1756818918387,0.52273184,109450.0,109440.0,0.34947853]
[1756818918816,0.34,109450.0,109440.0,0.34947853]
[1756818919032,0.34,109450.0,109440.0,1.03302854]
[1756818919476,0.34,109450.0,109440.0,0.34947853]
[1756818920129,0.52273184,109450.0,109440.0,0.19071853]
[1756818920335,0.52273184,109450.0,109440.0,0.34943853]
[1756818920975,0.52273184,109450.0,109440.0,0.16669]
[1756818921183,0.52476184,109450.0,109440.0,0.16172]
[1756818921411,0.52273184,109450.0,109440.0,0.16372]
[1756818921602,0.52273184,109450.0,109440.0,0.34943853]
[1756818922309,0.52476184,109450.0,109440.0,0.003]
[1756818922524,0.52476184,109450.0,109440.0,0.16172]
[1756818923187,4.688e-05,109460.0,109440.0,1.00486833]
[1756818923425,4.688e-05,109460.0,109450.0,0.98210666]
[1756818923854,4.688e-05,109460.0,109450.0,0.98410666]
[1756818924740,4.688e-05,109460.0,109450.0,0.30055665]
[1756818924964,4.688e-05,109460.0,109450.0,0.45923665]
[1756818925184,4.688e-05,109460.0,109450.0,0.46848981]
[1756818926121,4.688e-05,109460.0,109450.0,0.47248981]
[1756818927013,4.688e-05,109460.0,109450.0,0.47448981]
[1756818927434,0.18276202,109460.0,109450.0,0.47448981]
[1756818927654,0.18276202,109460.0,109450.0,0.73064786]
[1756818928079,0.18276202,109460.0,109450.0,0.47448981]
[1756818928533,4.688e-05,109460.0,109450.0,0.47448981]
[1756818929564,0.18276202,109460.0,109450.0,0.47448981]
[1756818930418,0.18276202,109460.0,109450.0,0.73698981]
[1756818930641,4.688e-05,109460.0,109450.0,0.73698981]
[1756818931069,0.18276202,109460.0,109450.0,0.73698981]
[1756818931728,0.18276202,109460.0,109450.0,0.13307797]
[1756818931946,0.18276202,109460.0,109450.0,0.16692414]
[1756818931947,0.62368191,109460.0,109450.0,0.16692414]
[1756818932183,0.18479202,109460.0,109450.0,0.16692414]
[1756818932617,0.18479202,109460.0,109450.0,0.16664]
[1756818932826,0.18479202,109460.0,109450.0,0.16961]
[1756818933043,0.18479202,109460.0,109450.0,0.16361]
[1756818933268,0.18479202,109460.0,109440.0,0.2625]
[1756818933541,0.18479202,109460.0,109430.0,0.07028]
[1756818933542,0.18274853,109440.0,109430.0,0.07028]
[1756818933768,0.62480173,109450.0,109430.0,0.41889913]
[1756818933769,0.62162173,109450.0,109430.0,0.41889913]
[1756818933987,0.35960484,109450.0,109440.0,0.00297]
[1756818934203,0.20233668,109450.0,109440.0,0.18771853]
[1756818934424,0.01960484,109450.0,109440.0,0.18971853]
[1756818934847,0.19189777,109460.0,109450.0,0.18273184]
[1756818935055,0.21151639,109460.0,109450.0,0.34333184]
[1756818935285,0.0196655,109460.0,109450.0,0.43821783]
[1756818935717,4.688e-05,109460.0,109450.0,0.43821783]
[1756818935932,4.688e-05,109460.0,109450.0,0.45915665]
[1756818936149,4.688e-05,109460.0,109450.0,0.89804654]
[1756818936365,4.688e-05,109460.0,109450.0,0.45915665]
[1756818936792,4.688e-05,109460.0,109450.0,0.46115665]
[1756818937003,4.688e-05,109460.0,109450.0,0.90004654]
[1756818937421,4.688e-05,109460.0,109450.0,0.46115665]
[1756818937841,4.688e-05,109460.0,109450.0,0.46215665]
[1756818940805,4.688e-05,109460.0,109450.0,0.46211665]
[1756818944542,4.688e-05,109460.0,109450.0,0.30355665]
[1756818944760,4.688e-05,109460.0,109450.0,0.46207665]
[1756818945878,0.00203688,109460.0,109450.0,0.43817783]
[1756818946093,4.688e-05,109460.0,109450.0,0.44129783]
[1756818946731,4.688e-05,109460.0,109450.0,0.46223665]
[1756818947539,4.688e-05,109460.0,109450.0,0.90112654]
[1756818947958,4.688e-05,109460.0,109450.0,0.46223665]
[1756818948178,4.688e-05,109460.0,109450.0,0.90112654]
[1756818949644,4.688e-05,109460.0,109450.0,0.46223665]
[1756818949858,4.688e-05,109460.0,109450.0,0.90112654]
[1756818953098,4.688e-05,109460.0,109450.0,0.90108654]
[1756818953506,4.688e-05,109460.0,109450.0,0.88349224]
[1756818954593,4.688e-05,109460.0,109450.0,0.46219665]
[1756818954813,4.688e-05,109460.0,109450.0,0.72501224]
[1756818955026,0.00203688,109460.0,109450.0,0.45907665]
[1756818955672,0.00203688,109460.0,109450.0,0.46219665]
[1756818955889,0.00203688,109460.0,109450.0,0.45706665]
[1756818957010,0.00203688,109460.0,109450.0,0.45907665]
[1756818957225,0.00203688,109460.0,109450.0,0.46219665]
[1756818957640,0.00203688,109460.0,109450.0,0.45907665]
[1756818958088,0.00203688,109460.0,109450.0,0.46219665]
[1756818958369,4.688e-05,109460.0,109450.0,0.46219665]
[1756818959709,4.688e-05,109460.0,109450.0,0.90115165]
[1756818962205,4.688e-05,109460.0,109450.0,0.96886165]
[1756818962837,4.688e-05,109460.0,109450.0,0.96786165]
[1756818963053,4.688e-05,109460.0,109450.0,0.96986165]
[1756818963262,4.688e-05,109460.0,109450.0,0.96982165]
[1756818963981,4.688e-05,109460.0,109450.0,0.96978165]
[1756818964197,4.688e-05,109460.0,109450.0,1.36978165]
[1756818964824,4.688e-05,109460.0,109450.0,1.36778165]
[1756818965248,4.688e-05,109460.0,109450.0,1.63328165]
[1756818966103,4.688e-05,109460.0,109450.0,1.47488165]
[1756818966314,4.688e-05,109460.0,109450.0,1.63328165]
[1756818968964,4.688e-05,109460.0,109450.0,1.56557165]
[1756818969593,4.688e-05,109460.0,109450.0,1.12661665]
[1756818969735,4.688e-05,109460.0,109450.0,1.56557165]
[1756818971089,4.688e-05,109460.0,109450.0,1.38623283]
[1756818971288,4.688e-05,109460.0,109450.0,1.54459283]
[1756818971903,4.688e-05,109460.0,109450.0,1.56553165]
[1756818974291,4.688e-05,109460.0,109450.0,0.96821665]
[1756818974502,4.688e-05,109460.0,109450.0,1.56549165]
[1756818977435,4.688e-05,109460.0,109450.0,1.96879379]
[1756818978076,1e-08,109460.0,109450.0,2.35879379]
[1756818978740,0.0002,109490.0,109480.0,0.20362058]
[1756818978964,0.00028572,109490.0,109480.0,1.6288537]
[1756818979204,0.00028572,109490.0,109480.0,1.6340137]
[1756818979413,0.00028572,109490.0,109480.0,0.79175656]
[1756818979642,0.00028572,109490.0,109480.0,1.6340137]
[1756818979845,0.00128572,109490.0,109480.0,1.6340137]
[1756818980062,0.00228572,109490.0,109480.0,1.6340137]
[1756818980277,0.00128572,109490.0,109480.0,1.6340137]
[1756818980491,0.00028572,109490.0,109480.0,1.6340137]
[1756818980702,0.00028572,109490.0,109480.0,1.6370137]
[1756818981581,0.00028572,109490.0,109480.0,1.37451371]
[1756818982207,0.00028572,109490.0,109480.0,1.2385454]
[1756818982419,0.00028572,109490.0,109480.0,1.3968254]
[1756818982620,0.00028572,109490.0,109480.0,1.2385454]
[1756818982836,0.00028572,109490.0,109480.0,1.3968254]
[1756818983105,0.00028572,109490.0,109480.0,1.7968254]
[1756818983318,0.00028572,109490.0,109480.0,1.6385454]
[1756818983769,0.00230572,109490.0,109480.0,1.7968254]
[1756818983988,0.00230572,109490.0,109480.0,1.41336572]
[1756818984420,0.00548572,109490.0,109480.0,0.94684664]
[1756818984618,0.00548572,109490.0,109480.0,0.96778546]
[1756818984833,0.00548572,109490.0,109480.0,0.98989028]
[1756818985047,0.00230572,109490.0,109480.0,0.40950546]
[1756818985248,0.60927937,109490.0,109480.0,0.56774546]
[1756818985465,0.42661429,109490.0,109480.0,0.56774546]
[1756818985692,0.00548572,109490.0,109480.0,0.56774546]
[1756818985900,0.42343429,109490.0,109480.0,0.56774546]
[1756818986110,0.00230572,109490.0,109480.0,0.56774546]
[1756818986565,0.42343429,109490.0,109480.0,0.40950546]
[1756818986796,0.00230572,109490.0,109480.0,0.40950546]
[1756818987001,0.00230572,109490.0,109480.0,0.56774546]
[1756818987626,0.00230572,109490.0,109480.0,0.52701657]
[1756818988896,0.60930626,109490.0,109480.0,0.52701657]
[1756818989129,0.42664118,109490.0,109480.0,0.52701657]
[1756818989790,0.00548572,109490.0,109480.0,0.52701657]
[1756818990024,0.42664118,109490.0,109480.0,0.52701657]
[1756818990260,0.00548572,109490.0,109480.0,0.52701657]
[1756818990506,0.42664118,109490.0,109480.0,0.52701657]
[1756818990791,0.00230572,109490.0,109480.0,0.52701657]
[1756818991010,0.00028572,109490.0,109480.0,0.53217657]
[1756818991234,0.00230572,109490.0,109480.0,0.53217657]
[1756818992440,0.50230572,109490.0,109480.0,0.52701657]
[1756818992669,0.92346118,109490.0,109480.0,0.78947656]
[1756818992863,0.50548572,109490.0,109480.0,0.78947656]
[1756818993070,0.92346118,109490.0,109480.0,0.78947656]
[1756818993518,0.50028572,109490.0,109480.0,0.79463656]
[1756818993955,0.50028572,109490.0,109480.0,1.21579202]
[1756818996982,0.50028572,109490.0,109480.0,0.95329203]
[1756818997295,0.50028572,109490.0,109480.0,0.53213657]
[1756818997512,0.50028572,109490.0,109480.0,1.35329203]
[1756818997713,0.50028572,109490.0,109480.0,0.93213657]
[1756818997918,0.50028572,109490.0,109480.0,1.35329203]
[1756818999142,0.50028572,109490.0,109480.0,0.93213657]
[1756818999355,0.50028572,109490.0,109480.0,1.35329203]
[1756819000756,0.07940327,109490.0,109480.0,1.69329203]
[1756819001204,0.07940327,109490.0,109480.0,1.53509203]
[1756819001671,0.07940327,109490.0,109480.0,1.69225203]
[1756819001893,0.07940327,109490.0,109480.0,1.7217036]
[1756819002125,0.07940327,109490.0,109480.0,1.69225203]
[1756819002983,0.08138327,109490.0,109480.0,0.58939657]
[1756819003203,0.08138327,109490.0,109480.0,0.74545657]
[1756819003421,0.08433327,109490.0,109480.0,0.72451775]
[1756819003640,0.08433327,109490.0,109480.0,0.72651775]
[1756819003859,0.50548873,109490.0,109480.0,0.72647775]
[1756819004414,0.50548873,109490.0,109480.0,0.34883775]
[1756819004635,0.50548873,109490.0,109480.0,0.50695775]
[1756819004832,0.50548873,109490.0,109480.0,0.52789657]
[1756819007284,0.08433327,109490.0,109480.0,0.52789657]
[1756819007500,0.50548873,109490.0,109480.0,0.52789657]
[1756819007907,0.68815381,109490.0,109480.0,0.52789657]
[1756819008153,0.50548873,109490.0,109480.0,0.52789657]
[1756819008394,0.08433327,109490.0,109480.0,0.52789657]
[1756819008616,0.50548873,109490.0,109480.0,0.52789657]
[1756819009051,0.70842312,109490.0,109480.0,0.18709481]
[1756819009273,0.70842312,109490.0,109480.0,0.52789657]
[1756819009496,0.50548873,109490.0,109480.0,0.52789657]
[1756819009760,0.08433327,109490.0,109480.0,0.52589657]
[1756819009977,0.50548873,109490.0,109480.0,0.52389657]
[1756819010697,0.08433327,109490.0,109480.0,0.52489657]
[1756819010837,0.50548873,109490.0,109480.0,0.52589657]
[1756819011879,0.50253873,109490.0,109480.0,0.52689657]
[1756819012087,0.68815381,109490.0,109480.0,0.52689657]
[1756819012296,0.50548873,109490.0,109480.0,0.52589657]
[1756819012514,0.68815381,109490.0,109480.0,0.36777657]
[1756819012704,0.68815381,109490.0,109480.0,0.52689657]
[1756819013536,0.68815381,109490.0,109480.0,0.18609481]
[1756819013738,0.7078528,109490.0,109480.0,0.52689657]
[1756819013863,0.28669734,109490.0,109480.0,0.52689657]
[1756819014074,0.7078528,109490.0,109480.0,0.52689657]
[1756819014538,0.7078528,109490.0,109480.0,0.07324]
[1756819014539,1.13976879,109490.0,109480.0,0.07324]
[1756819014748,1.16723534,109490.0,109480.0,0.003]
[1756819014948,1.16723534,109490.0,109480.0,0.16108]
[1756819015362,1.16723534,109490.0,109480.0,0.16008]
[1756819015570,1.18689614,109490.0,109480.0,0.16008]
[1756819015774,1.16723534,109490.0,109480.0,0.16008]
[1756819015978,1.67544196,109490.0,109480.0,0.16008]
[1756819016141,1.2542865,109490.0,109480.0,0.16008]
[1756819016768,0.18270779,109470.0,109460.0,0.18271514]
[1756819017117,0.60879325,109470.0,109460.0,0.43271113]
[1756819017335,1.02994871,109470.0,109460.0,0.34079514]
[1756819017858,0.42608546,109470.0,109460.0,0.34079514]
[1756819018085,0.42313546,109470.0,109460.0,0.45567995]
[1756819018505,0.42313546,109470.0,109460.0,0.45364995]
[1756819018720,0.00198,109470.0,109460.0,0.45364995]
[1756819018936,0.42313546,109470.0,109460.0,0.45567995]
[1756819019143,0.42313546,109470.0,109460.0,0.45873995]
[1756819019365,0.00198,109470.0,109460.0,0.45873995]
[1756819019578,0.42313546,109470.0,109460.0,0.45567995]
[1756819019785,0.42313546,109470.0,109460.0,0.45364995]
[1756819019995,0.42313546,109470.0,109460.0,0.45567995]
[1756819020194,0.60583391,109470.0,109460.0,0.29556995]
[1756819020419,0.42313546,109470.0,109460.0,0.45364995]
[1756819020637,0.60583391,109470.0,109460.0,0.45364995]
[1756819020864,1.02993937,109470.0,109460.0,0.34079514]
[1756819021778,0.18271514,109460.0,109450.0,0.27391066]
[1756819022002,0.6058506,109460.0,109450.0,0.50296783]
[1756819022212,0.42313546,109460.0,109450.0,0.50296783]
[1756819022433,0.00198,109460.0,109450.0,0.50296783]
[1756819022683,0.00198,109460.0,109450.0,0.07024]
[1756819022684,0.6088006,109460.0,109450.0,0.07024]
[1756819022915,0.9488006,109460.0,109450.0,0.22832]
[1756819023156,0.9488006,109460.0,109430.0,0.18276359]
[1756819023157,0.18274853,109440.0,109430.0,0.18276359]
[1756819023382,0.34,109450.0,109440.0,0.18274853]
[1756819023601,0.9458673,109450.0,109430.0,0.43581958]
[1756819023827,0.42115546,109440.0,109430.0,0.4536984]
[1756819024049,0.42115546,109440.0,109430.0,0.43784958]
[1756819024282,0.60588399,109440.0,109430.0,0.09191599]
[1756819024508,0.42115546,109440.0,109430.0,0.43832071]
[1756819024786,0.52273184,109450.0,109440.0,0.18374853]
[1756819024787,0.42115546,109450.0,109440.0,0.18374853]
[1756819025008,1.11106883,109470.0,109450.0,0.18273184]
[1756819025009,0.19183337,109470.0,109450.0,0.18273184]
[1756819025235,0.79060715,109460.0,109450.0,0.18476184]
[1756819025450,0.79060715,109460.0,109450.0,0.34081184]
[1756819025888,0.97332229,109460.0,109450.0,0.34081184]
[1756819026109,0.78862715,109460.0,109450.0,0.43781783]
[1756819026327,0.76115546,109460.0,109450.0,0.43781783]
[1756819026538,0.76313546,109460.0,109450.0,0.43781783]
[1756819026760,0.52469514,109460.0,109450.0,0.43272783]
[1756819026970,0.9458506,109460.0,109450.0,0.43272783]
[1756819027186,0.9488006,109460.0,109450.0,0.24999599]
[1756819027425,0.6088006,109460.0,109440.0,0.1837475]
[1756819027641,0.18469514,109460.0,109450.0,0.15808]
[1756819028112,0.18273184,109450.0,109440.0,0.001]
[1756819028345,0.18273184,109450.0,109440.0,0.15908]
[1756819028583,0.18766184,109450.0,109440.0,0.15908]
[1756819028817,0.6088173,109450.0,109440.0,0.34182853]
[1756819029051,0.6088173,109450.0,109440.0,0.001]
[1756819029297,0.68797054,109450.0,109440.0,0.15908]
[1756819030044,0.6088173,109450.0,109440.0,0.15808]
[1756819030737,0.9488173,109450.0,109440.0,0.15908]
[1756819030948,0.9488173,109450.0,109440.0,0.16008]
[1756819031591,0.9488173,109450.0,109440.0,0.15808]
[1756819032290,1.36997276,109450.0,109440.0,0.15808]
[1756819032533,0.18274853,109440.0,109430.0,0.00046949]
[1756819032743,1.02505945,109440.0,109430.0,0.15854949]
[1756819033168,1.03008945,109440.0,109430.0,0.15854949]
[1756819033385,1.37008945,109440.0,109430.0,0.15854949]
[1756819034022,1.39010272,109440.0,109430.0,0.15854949]
[1756819034243,1.50949782,109440.0,109430.0,0.15854949]
[1756819034466,1.50949782,109440.0,109430.0,0.15954949]
[1756819035092,1.41758183,109440.0,109430.0,0.15954949]
[1756819035763,1.41758183,109440.0,109430.0,0.00146949]
[1756819035980,1.41758183,109440.0,109430.0,0.15954949]
[1756819036680,0.57527091,109440.0,109430.0,0.15954949]
[1756819036905,1.41758183,109440.0,109430.0,0.15954949]
[1756819037122,1.50949782,109440.0,109430.0,0.15954949]
[1756819038250,1.41758183,109440.0,109430.0,0.15854949]
[1756819038882,1.43715963,109440.0,109430.0,0.00046949]
[1756819039068,1.43715963,109440.0,109430.0,0.15854949]
[1756819040020,1.43715963,109440.0,109430.0,0.00046949]
[1756819040255,1.52907562,109440.0,109430.0,0.00046949]
[1756819040457,1.78544498,109440.0,109430.0,0.00046949]
[1756819040669,1.77907161,109440.0,109430.0,0.00046949]
[1756819040883,1.62099161,109440.0,109430.0,0.00046949]
[1756819041108,1.01097417,109440.0,109430.0,0.00556949]
[1756819041320,0.83656818,109440.0,109430.0,0.00556949]
[1756819041530,0.02001327,109440.0,109430.0,0.18833472]
[1756819041944,0.76115546,109440.0,109430.0,0.18833472]
[1756819042151,0.94390399,109440.0,109430.0,0.18833472]
[1756819043629,0.52274853,109440.0,109430.0,0.18833472]
[1756819043869,0.34,109440.0,109430.0,0.18833472]
[1756819044077,0.34,109440.0,109430.0,0.16832272]
[1756819044290,0.34,109440.0,109430.0,0.17045272]
[1756819044702,0.52274853,109440.0,109430.0,0.17045272]
[1756819044909,0.52471853,109440.0,109430.0,0.17045272]
[1756819045118,0.54739291,109440.0,109430.0,0.17045272]
[1756819045337,0.54739291,109440.0,109430.0,0.16832272]
[1756819045549,0.54739291,109440.0,109430.0,0.32640272]
[1756819045786,0.54739291,109440.0,109430.0,0.32853272]
[1756819046014,0.35961438,109440.0,109430.0,0.32853272]
[1756819046254,0.34,109440.0,109430.0,0.33150272]
[1756819046950,0.52274853,109440.0,109430.0,0.32853272]
[1756819047173,0.54434448,109440.0,109430.0,0.34297523]
[1756819048208,0.54735879,109440.0,109430.0,0.34084523]
[1756819048461,0.54735879,109440.0,109430.0,0.15808]
[1756819048676,0.54644501,109440.0,109430.0,0.34297523]
[1756819049633,0.98564527,109440.0,109430.0,0.34297523]
[1756819050518,0.98564527,109440.0,109430.0,0.15808]
[1756819050741,0.54644501,109440.0,109430.0,0.15808]
[1756819050959,0.98564527,109440.0,109430.0,0.15808]
[1756819051419,0.98564527,109440.0,109430.0,0.34084523]
[1756819051633,0.64660474,109440.0,109430.0,0.34084523]
[1756819051839,0.64660474,109440.0,109430.0,0.15808]
[1756819052047,0.64660474,109440.0,109430.0,0.34084523]
[1756819052447,0.64660474,109440.0,109430.0,0.15808]
[1756819053127,0.65300678,109440.0,109430.0,0.15808]
[1756819054125,0.74472148,109440.0,109430.0,0.15828]
[1756819054348,0.76179023,109440.0,109430.0,0.15828]
[1756819054563,0.78926951,109440.0,109430.0,0.15828]
[1756819055004,0.1827734,109430.0,109410.0,0.47537723]
[1756819055262,0.44117026,109420.0,109410.0,0.19406841]
[1756819055481,0.6270122,109420.0,109410.0,0.34324848]
[1756819055706,0.44117026,109420.0,109410.0,0.34324848]
[1756819056135,0.00197,109420.0,109410.0,0.34324848]
[1756819056352,0.62503366,109430.0,109420.0,0.18278194]
[1756819056567,0.67014212,109430.0,109420.0,0.18278194]
[1756819056801,0.67014212,109430.0,109410.0,0.34111848]
[1756819057036,0.6250422,109420.0,109410.0,0.34111864]
[1756819057159,0.64667702,109420.0,109410.0,0.34111864]
[1756819057592,0.64667702,109420.0,109410.0,0.34324864]
[1756819057804,0.45886508,109420.0,109410.0,0.34524864]
[1756819058044,0.01966482,109420.0,109410.0,0.34524864]
[1756819058279,0.01966482,109420.0,109410.0,0.46107345]